fUST/lending_fUST_20250417
["ID","MTS","AMOUNT","RATE_DAILY","PERIOD"]
[358265730,1744882248252,-916.93,0.00021917,2]
[358265731,1744882248262,-637.44,0.00021917,2]
[358265732,1744882248272,-500.0,0.00021917,2]
[358265733,1744882248281,-616.23,0.00021917,2]
[358265734,1744882248289,-685.93,0.00021917,2]
[358265735,1744882248299,-167.48185052,0.00021917,2]
[358265736,1744882248308,-500.0,0.00021917,2]
[358265737,1744882248316,-612.27,0.00021917,2]
[358265738,1744882248325,-500.0,0.00021917,2]
[358265739,1744882248333,-724.78,0.00021917,2]
[358265740,1744882248342,-500.0,0.00021917,2]
[358265741,1744882248351,-500.0,0.00021917,2]
[358265742,1744882248360,-500.0,0.00021917,2]
[358265743,1744882248370,-500.0,0.00021917,2]
[358265744,1744882248379,-500.0,0.00021917,2]
[358265745,1744882248388,-500.0,0.00021917,2]
[358265746,1744882248396,-500.0,0.00021917,2]
[358265747,1744882248406,-500.0,0.00021917,2]
[358265748,1744882248416,-761.51,0.00021917,2]
[358265749,1744882248426,-647.56,0.00021917,2]
[358265750,1744882248435,-1211.44,0.00021917,2]
[358265751,1744882248446,-500.0,0.00021917,2]
[358265752,1744882248456,-500.0,0.00021917,2]
[358265753,1744882248466,-521.12257341,0.00021917,2]
[358265754,1744882248475,-1283.76,0.00021917,2]
[358265755,1744882248485,-500.0,0.00021917,2]
[358265756,1744882248494,-500.0,0.00021917,2]
[358265757,1744882248504,-500.0,0.00021917,2]
[358265758,1744882248514,-772.29,0.00021917,2]
[358265759,1744882248524,-500.0,0.00021917,2]
[358265760,1744882248533,-500.0,0.00021917,2]
[358265761,1744882248543,-500.0,0.00021917,2]
[358265762,1744882248552,-710.27,0.00021917,2]
[358265763,1744882248562,-616.21,0.00021917,2]
[358265764,1744882248571,-500.0,0.00021917,2]
[358265765,1744882248581,-500.0,0.00021917,2]
[358265766,1744882248591,-1637.15,0.00021917,2]
[358265767,1744882248600,-570.27,0.00021917,2]
[358265768,1744882248610,-500.0,0.00021917,2]
[358265769,1744882248619,-576.5,0.00021917,2]
[358265770,1744882248629,-500.0,0.00021917,2]
[358265771,1744882248639,-804.07,0.00021917,2]
[358265772,1744882248649,-500.0,0.00021917,2]
[358265773,1744882248658,-500.0,0.00021917,2]
[358265774,1744882248668,-731.35,0.00021917,2]
[358265775,1744882248677,-500.0,0.00021917,2]
[358265776,1744882248687,-1560.1,0.00021917,2]
[358265777,1744882248696,-500.0,0.00021917,2]
[358265778,1744882248706,-1133.19,0.00021917,2]
[358265779,1744882248717,-574.22013557,0.00021917,2]
[358265780,1744882248726,-550.49,0.00021917,2]
[358265781,1744882248736,-1116.98,0.00021917,2]
[358265782,1744882248746,-500.0,0.00021917,2]
[358265783,1744882248756,-509.05,0.00021917,2]
[358265784,1744882248766,-927.78,0.00021917,2]
[358265785,1744882248775,-500.0,0.00021917,2]
[358265786,1744882248784,-500.0,0.00021917,2]
[358265787,1744882248794,-500.0,0.00021917,2]
[358265788,1744882248803,-1415.83,0.00021917,2]
[358265789,1744882248813,-500.0,0.00021917,2]
[358265790,1744882248823,-955.93,0.00021917,2]
[358265791,1744882248833,-500.0,0.00021917,2]
[358265792,1744882248842,-646.19,0.00021917,2]
[358265793,1744882248852,-500.0,0.00021917,2]
[358265794,1744882248861,-500.0,0.00021917,2]
[358265795,1744882248871,-500.0,0.00021917,2]
[358265796,1744882248881,-500.0,0.00021917,2]
[358265797,1744882248891,-667.29,0.00021917,2]
[358265798,1744882248901,-500.0,0.00021917,2]
[358265799,1744882248910,-500.0,0.00021917,2]
[358265800,1744882248920,-500.0,0.00021917,2]
[358265801,1744882248929,-500.0,0.00021917,2]
[358265802,1744882248939,-500.0,0.00021917,2]
[358265803,1744882248948,-500.0,0.00021917,2]
[358265804,1744882248958,-158.24046966,0.00021917,2]
[358265805,1744882248967,-500.0,0.00021917,2]
[358265806,1744882248976,-506.33,0.00021917,2]
[358265807,1744882248985,-500.0,0.00021917,2]
[358265808,1744882248994,-646.17,0.00021917,2]
[358265809,1744882249005,-500.0,0.00021917,2]
[358265810,1744882249018,-500.0,0.00021917,2]
[358265811,1744882249027,-500.0,0.00021917,2]
[358265812,1744882249037,-500.0,0.00021917,2]
[358265813,1744882249047,-537.67,0.00021917,2]
[358265814,1744882249056,-500.0,0.00021917,2]
[358265815,1744882249066,-500.0,0.00021917,2]
[358265816,1744882249076,-1662.87,0.00021917,2]
[358265817,1744882249088,-500.0,0.00021917,2]
[358265818,1744882249097,-500.0,0.00021917,2]
[358265819,1744882249106,-1438.25,0.00021917,2]
[358265820,1744882249115,-500.0,0.00021917,2]
[358265821,1744882249125,-500.0,0.00021917,2]
[358265822,1744882249134,-500.0,0.00021917,2]
[358265823,1744882249144,-500.0,0.00021917,2]
[358265824,1744882249154,-500.0,0.00021917,2]
[358265825,1744882249164,-2007.7,0.00021917,2]
[358265826,1744882249174,-500.0,0.00021917,2]
[358265827,1744882249184,-500.0,0.00021917,2]
[358265828,1744882249194,-500.0,0.00021917,2]
[358265829,1744882249204,-1801.71,0.00021917,2]
[358265830,1744882249214,-959.82,0.00021917,2]
[358265831,1744882249224,-500.0,0.00021917,2]
[358265832,1744882249234,-500.0,0.00021917,2]
[358265833,1744882249244,-500.0,0.00021917,2]
[358265834,1744882249254,-500.0,0.00021917,2]
[358265835,1744882249265,-692.83,0.00021917,2]
[358265836,1744882249275,-1849.87,0.00021917,2]
[358265837,1744882249284,-600.59,0.00021917,2]
[358265838,1744882249294,-500.0,0.00021917,2]
[358265839,1744882249303,-898.89,0.00021917,2]
[358265840,1744882249314,-541.71,0.00021917,2]
[358265841,1744882249324,-500.0,0.00021917,2]
[358265842,1744882249333,-448.02851767,0.00021917,2]
[358265843,1744882249343,-500.0,0.00021917,2]
[358265844,1744882249353,-405.23320625,0.00021917,2]
[358265850,1744882820950,-151.0,0.00019619,8]
[358265854,1744883160996,-205.07075549,0.000189,2]
[358265897,1744883432836,-198.68110783,0.000189,2]
[358265898,1744883432846,-166.61976,0.00019386,2]
[358265899,1744883432857,-166.4520318,0.00019797,2]
[358265900,1744883432867,-172.73059825,0.000198,2]
[358265901,1744883432877,-300.0,0.00019852,2]
[358265902,1744883432887,-300.0,0.00019852,2]
[358265903,1744883432896,-8758.87688692,0.00019853,2]
[358265904,1744883432908,-2114.94676018,0.00019853,2]
[358265905,1744883432917,-151.67744638,0.0002,2]
[358265906,1744883432927,-419.375,0.00020044,2]
[358265907,1744883432936,-172.73059825,0.00020384,5]
[358265908,1744883432946,-637.23022731,0.00020796,2]
[358265909,1744883432956,-50000.0,0.00020797,2]
[358265910,1744883432966,-6000.0,0.00020797,2]
[358265911,1744883432975,-47764.29053056,0.00020798,2]
[358265942,1744883438772,-10500.0,0.00020798,2]
[358265943,1744883438827,-26287.89890302,0.00020798,2]
[358265971,1744883443676,-5000.0,0.00020798,2]
[358265986,1744883446635,-382.748628,0.00020798,2]
[358265994,1744883463707,-257.03545622,0.000189,2]
[358265995,1744883517427,176.0,0.00024,120]
[358265998,1744883578490,-260.65408071,0.000188,2]
[358265999,1744883647317,-257.8938,0.000188,2]
[358266000,1744883763143,-257.33695678,0.000188,2]
[358266001,1744883763167,-33.83486657,0.000189,2]
[358266006,1744884064699,-238.06788423,0.000189,2]
[358266007,1744884360117,-256.95046,0.000189,2]
[358266018,1744884544009,-161.3618006,0.00019885,2]
[358266019,1744884544032,-88.6381994,0.00019954,2]
[358266109,1744884631867,-415.2587224,0.00019954,2]
[358266110,1744884631877,-295.072094,0.00020013,2]
[358266111,1744884631886,-265.74826178,0.00020172,2]
[358266112,1744884631899,-34.25173822,0.00020172,2]
[358266113,1744884631908,-812.33353148,0.00020173,2]
[358266114,1744884631920,-420.49297841,0.00020173,2]
[358266115,1744884631940,-869.48887298,0.00020173,2]
[358266116,1744884631951,-546.50562813,0.00020173,2]
[358266137,1744884637988,-5000.0,0.00020173,2]
[358266138,1744884638000,-286.97427163,0.00020173,2]
[358266139,1744884638070,-5028.93612567,0.00020173,2]
[358266140,1744884638080,-539.4648088,0.00020197,2]
[358266141,1744884638090,-4121.69831697,0.00020797,2]
[358266143,1744884638099,-6000.0,0.00021,2]
[358266145,1744884638109,-297.0,0.00021118,2]
[358266146,1744884638120,-600.10601415,0.00021129,2]
[358266148,1744884638130,-50000.0,0.0002113,2]
[358266150,1744884638140,-402.0,0.00021336,2]
[358266152,1744884638150,-156.86,0.0002146,2]
[358266154,1744884638162,-160.0,0.0002146,3]
[358266155,1744884638177,-14287.82066938,0.00021817,2]
[358266156,1744884638187,-398.03532393,0.000219,2]
[358266157,1744884638197,-151.0,0.00021904,2]
[358266158,1744884638207,-207.4,0.00021904,2]
[358266159,1744884638220,-183.7882671,0.00021916,2]
[358266160,1744884638230,-177.23183137,0.00021916,2]
[358266161,1744884638239,-10597.22150436,0.00021917,2]
[358266162,1744884638249,-1333.50603575,0.00021917,3]
[358266163,1744884638260,-500.0,0.00021917,2]
[358266164,1744884638270,-500.0,0.00021917,2]
[358266165,1744884638280,-500.0,0.00021917,2]
[358266166,1744884638290,-500.0,0.00021917,2]
[358266167,1744884638300,-500.0,0.00021917,2]
[358266168,1744884638310,-500.0,0.00021917,2]
[358266169,1744884638320,-500.0,0.00021917,2]
[358266170,1744884638330,-631.47857603,0.00021917,2]
[358266171,1744884638340,-500.0,0.00021917,2]
[358266172,1744884638349,-500.0,0.00021917,2]
[358266173,1744884638359,-500.0,0.00021917,2]
[358266174,1744884638368,-500.0,0.00021917,2]
[358266175,1744884638378,-500.0,0.00021917,2]
[358266176,1744884638388,-500.0,0.00021917,2]
[358266177,1744884638400,-500.0,0.00021917,2]
[358266178,1744884638409,-500.0,0.00021917,2]
[358266179,1744884638419,-500.0,0.00021917,2]
[358266180,1744884638428,-500.0,0.00021917,2]
[358266181,1744884638438,-500.0,0.00021917,2]
[358266182,1744884638448,-500.0,0.00021917,2]
[358266183,1744884638457,-500.99788761,0.00021917,2]
[358266184,1744884638466,-501.40156226,0.00021917,2]
[358266185,1744884638476,-573.68518823,0.00021917,2]
[358266186,1744884638486,-500.0,0.00021917,2]
[358266187,1744884638495,-500.0,0.00021917,2]
[358266188,1744884638505,-500.0,0.00021917,2]
[358266189,1744884638515,-551.0,0.00021917,2]
[358266190,1744884638524,-500.0,0.00021917,2]
[358266191,1744884638534,-500.0,0.00021917,2]
[358266192,1744884638543,-500.0,0.00021917,2]
[358266193,1744884638553,-500.0,0.00021917,2]
[358266194,1744884638562,-500.0,0.00021917,2]
[358266195,1744884638572,-500.0,0.00021917,2]
[358266196,1744884638582,-500.0,0.00021917,2]
[358266197,1744884638592,-500.0,0.00021917,2]
[358266198,1744884638602,-500.0,0.00021917,2]
[358266199,1744884638612,-853.55,0.00021917,2]
[358266200,1744884638622,-643.29,0.00021917,2]
[358266201,1744884638631,-530.32,0.00021917,2]
[358266202,1744884638642,-483.17526884,0.00021917,2]
[358266203,1744884638652,-500.0,0.00021917,2]
[358266204,1744884638661,-500.0,0.00021917,2]
[358266205,1744884638671,-500.0,0.00021917,2]
[358266206,1744884638682,-500.0,0.00021917,2]
[358266207,1744884638691,-500.0,0.00021917,2]
[358266208,1744884638701,-500.0,0.00021917,2]
[358266209,1744884638710,-500.0,0.00021917,2]
[358266210,1744884638720,-500.0,0.00021917,2]
[358266211,1744884638730,-500.0,0.00021917,2]
[358266212,1744884638741,-500.0,0.00021917,2]
[358266213,1744884638752,-500.0,0.00021917,2]
[358266214,1744884638761,-500.0,0.00021917,2]
[358266215,1744884638771,-500.0,0.00021917,2]
[358266216,1744884638780,-501.1540026,0.00021917,2]
[358266217,1744884638790,-500.0,0.00021917,2]
[358266218,1744884638802,-500.0,0.00021917,2]
[358266219,1744884638812,-500.0,0.00021917,2]
[358266220,1744884638822,-500.0,0.00021917,2]
[358266221,1744884638832,-500.0,0.00021917,2]
[358266222,1744884638842,-500.0,0.00021917,2]
[358266223,1744884638851,-500.0,0.00021917,2]
[358266224,1744884638865,-572.32,0.00021917,2]
[358266225,1744884638876,-500.0,0.00021917,2]
[358266226,1744884638885,-500.0,0.00021917,2]
[358266227,1744884638895,-500.0,0.00021917,2]
[358266228,1744884638906,-500.0,0.00021917,2]
[358266229,1744884638915,-500.0,0.00021917,2]
[358266230,1744884638925,-500.0,0.00021917,2]
[358266231,1744884638937,-500.0,0.00021917,2]
[358266232,1744884638947,-500.0,0.00021917,2]
[358266233,1744884638957,-500.0,0.00021917,2]
[358266234,1744884638967,-500.0,0.00021917,2]
[358266235,1744884638977,-500.0,0.00021917,2]
[358266236,1744884638987,-897.97,0.00021917,2]
[358266237,1744884638998,-500.0,0.00021917,2]
[358266238,1744884639009,-500.0,0.00021917,2]
[358266239,1744884639019,-500.0,0.00021917,2]
[358266240,1744884639028,-963.11,0.00021917,2]
[358266241,1744884639038,-500.0,0.00021917,2]
[358266242,1744884639047,-500.0,0.00021917,2]
[358266243,1744884639057,-500.0,0.00021917,2]
[358266244,1744884639067,-500.0,0.00021917,2]
[358266245,1744884639084,-539.28,0.00021917,2]
[358266246,1744884639098,-500.0,0.00021917,2]
[358266247,1744884639108,-500.0,0.00021917,2]
[358266248,1744884639117,-500.0,0.00021917,2]
[358266249,1744884639127,-500.0,0.00021917,2]
[358266250,1744884639136,-500.0,0.00021917,2]
[358266251,1744884639146,-500.0,0.00021917,2]
[358266252,1744884639156,-500.0,0.00021917,2]
[358266253,1744884639165,-551.69,0.00021917,2]
[358266254,1744884639175,-500.0,0.00021917,2]
[358266255,1744884639184,-161.82025733,0.00021917,2]
[358266256,1744884639201,-316.78411068,0.00021917,2]
[358266257,1744884639222,-21.39563199,0.00021917,2]
[358266258,1744884639231,-459.11862855,0.00021917,2]
[358266259,1744884639243,-40.88137145,0.00021917,2]
[358266261,1744884639252,-500.0,0.00021917,2]
[358266262,1744884639263,-500.0,0.00021917,2]
[358266263,1744884639272,-500.0,0.00021917,2]
[358266264,1744884639282,-500.0,0.00021917,2]
[358266265,1744884639292,-456.96923881,0.00021917,2]
[358266266,1744884639301,-562.3333515,0.00021917,2]
[358266267,1744884639311,-240.55907775,0.00021917,2]
[358266268,1744884639320,-500.0,0.00021917,2]
[358266269,1744884639330,-500.0,0.00021917,2]
[358266270,1744884639339,-500.0,0.00021917,2]
[358266271,1744884639349,-500.0,0.00021917,2]
[358266272,1744884639358,-500.0,0.00021917,2]
[358266273,1744884639368,-707.41,0.00021917,2]
[358266274,1744884639377,-503.98926482,0.00021917,2]
[358266275,1744884639387,-500.0,0.00021917,2]
[358266276,1744884639396,-500.0,0.00021917,2]
[358266277,1744884639406,-500.0,0.00021917,2]
[358266278,1744884639416,-653.25,0.00021917,2]
[358266279,1744884639425,-500.0,0.00021917,2]
[358266280,1744884639435,-993.28,0.00021917,2]
[358266281,1744884639445,-1378.6,0.00021917,2]
[358266282,1744884639455,-500.0,0.00021917,2]
[358266283,1744884639465,-500.0,0.00021917,2]
[358266284,1744884639475,-500.0,0.00021917,2]
[358266285,1744884639484,-500.0,0.00021917,2]
[358266286,1744884639493,-500.0,0.00021917,2]
[358266287,1744884639503,-926.77,0.00021917,2]
[358266288,1744884639513,-500.0,0.00021917,2]
[358266289,1744884639523,-500.0,0.00021917,2]
[358266290,1744884639533,-1000.0,0.00021917,2]
[358266291,1744884639542,-500.0,0.00021917,2]
[358266292,1744884639551,-500.0,0.00021917,2]
[358266293,1744884639561,-500.0,0.00021917,2]
[358266294,1744884639570,-500.0,0.00021917,2]
[358266295,1744884639579,-500.0,0.00021917,2]
[358266296,1744884639589,-543.2,0.00021917,2]
[358266297,1744884639598,-756.41,0.00021917,2]
[358266298,1744884639607,-500.00000001,0.00021917,2]
[358266300,1744884639616,-500.0,0.00021917,2]
[358266302,1744884639626,-500.0,0.00021917,2]
[358266303,1744884639635,-500.0,0.00021917,2]
[358266305,1744884639644,-500.0,0.00021917,2]
[358266307,1744884639653,-736.2,0.00021917,2]
[358266308,1744884639663,-500.0,0.00021917,2]
[358266309,1744884639672,-454.47740568,0.00021917,2]
[358266310,1744884640094,-177.23183137,0.00021916,2]
[358266311,1744884640107,-105.53535,0.00021917,2]
[358266368,1744884641866,-44.50484571,0.00021917,2]
[358266390,1744884642831,-177.23183137,0.00021916,2]
[358266391,1744884642842,-183.7882671,0.00021916,2]
[358266392,1744884642853,-562.85239861,0.00021917,2]
[358266393,1744884642869,-500.0,0.00021917,2]
[358266394,1744884642880,-373.12385724,0.00021917,2]
[358266395,1744884642894,-187.99614276,0.00021917,2]
[358266396,1744884642905,-500.0,0.00021917,2]
[358266397,1744884642916,-500.0,0.00021917,2]
[358266398,1744884642927,-805.27,0.00021917,2]
[358266399,1744884642940,-500.0,0.00021917,2]
[358266400,1744884642951,-500.0,0.00021917,2]
[358266401,1744884642962,-241.75347325,0.00021917,2]
[358266427,1744884645904,-378.82652675,0.00021917,2]
[358266429,1744884645915,-500.0,0.00021917,2]
[358266431,1744884645924,-720.73,0.00021917,2]
[358266433,1744884645934,-500.0,0.00021917,2]
[358266435,1744884645944,-500.0,0.00021917,2]
[358266437,1744884645953,-500.0,0.00021917,2]
[358266439,1744884645962,-581.4,0.00021917,2]
[358266441,1744884645972,-500.0,0.00021917,2]
[358266443,1744884645981,-1230.27,0.00021917,2]
[358266445,1744884645990,-500.0,0.00021917,2]
[358266447,1744884645999,-552.48,0.00021917,2]
[358266449,1744884646008,-502.2935293,0.00021917,2]
[358266451,1744884646018,-519.67,0.00021917,2]
[358266453,1744884646028,-1269.32,0.00021917,2]
[358266455,1744884646037,-500.0,0.00021917,2]
[358266457,1744884646047,-500.0,0.00021917,2]
[358266459,1744884646056,-500.0,0.00021917,2]
[358266462,1744884646065,-500.0,0.00021917,2]
[358266465,1744884646075,-1112.11,0.00021917,2]
[358266468,1744884646084,-505.42613545,0.00021917,2]
[358266470,1744884646093,-500.0,0.00021917,2]
[358266472,1744884646102,-548.39,0.00021917,2]
[358266474,1744884646111,-500.0,0.00021917,2]
[358266476,1744884646120,-910.52,0.00021917,2]
[358266478,1744884646129,-500.0,0.00021917,2]
[358266480,1744884646139,-530.75,0.00021917,2]
[358266482,1744884646148,-500.0,0.00021917,2]
[358266484,1744884646157,-500.0,0.00021917,2]
[358266486,1744884646167,-500.0,0.00021917,2]
[358266488,1744884646176,-500.0,0.00021917,2]
[358266490,1744884646185,-1568.94,0.00021917,2]
[358266492,1744884646195,-631.28,0.00021917,2]
[358266494,1744884646204,-500.0,0.00021917,2]
[358266496,1744884646213,-632.56146138,0.00021917,2]
[358266498,1744884646222,-500.0,0.00021917,2]
[358266500,1744884646232,-500.0,0.00021917,2]
[358266502,1744884646241,-500.0,0.00021917,2]
[358266504,1744884646251,-500.0,0.00021917,2]
[358266506,1744884646260,-500.0,0.00021917,2]
[358266508,1744884646270,-647.19240651,0.00021917,2]
[358266510,1744884646279,-500.0,0.00021917,2]
[358266512,1744884646289,-500.0,0.00021917,2]
[358266514,1744884646298,-500.0,0.00021917,2]
[358266516,1744884646308,-500.0,0.00021917,2]
[358266518,1744884646319,-500.0,0.00021917,2]
[358266520,1744884646328,-1495.09,0.00021917,2]
[358266522,1744884646338,-500.0,0.00021917,2]
[358266524,1744884646347,-500.0,0.00021917,2]
[358266526,1744884646356,-1833.16,0.00021917,2]
[358266528,1744884646365,-500.0,0.00021917,2]
[358266530,1744884646376,-500.0,0.00021917,2]
[358266532,1744884646385,-1160.97,0.00021917,2]
[358266534,1744884646395,-500.0,0.00021917,2]
[358266536,1744884646404,-174.5651288,0.00021917,2]
[358266538,1744884646414,-889.13,0.00021917,2]
[358266540,1744884646424,-619.26,0.00021917,2]
[358266542,1744884646434,-500.0,0.00021917,2]
[358266544,1744884646444,-500.0,0.00021917,2]
[358266546,1744884646454,-500.0,0.00021917,2]
[358266549,1744884646464,-500.0,0.00021917,2]
[358266551,1744884646474,-500.0,0.00021917,2]
[358266553,1744884646483,-639.49,0.00021917,2]
[358266555,1744884646493,-985.44,0.00021917,2]
[358266557,1744884646502,-500.0,0.00021917,2]
[358266559,1744884646512,-1270.74,0.00021917,2]
[358266561,1744884646522,-525.07,0.00021917,2]
[358266563,1744884646531,-531.61,0.00021917,2]
[358266565,1744884646542,-500.0,0.00021917,2]
[358266567,1744884646551,-500.0,0.00021917,2]
[358266569,1744884646560,-500.0,0.00021917,2]
[358266571,1744884646570,-619.25,0.00021917,2]
[358266573,1744884646579,-500.0,0.00021917,2]
[358266575,1744884646588,-500.0,0.00021917,2]
[358266577,1744884646598,-551.75141855,0.00021917,2]
[358266579,1744884646608,-500.0,0.00021917,2]
[358266581,1744884646617,-500.0,0.00021917,2]
[358266583,1744884646627,-783.33,0.00021917,2]
[358266585,1744884646636,-500.0,0.00021917,2]
[358266587,1744884646646,-1107.29,0.00021917,2]
[358266589,1744884646655,-500.0,0.00021917,2]
[358266591,1744884646664,-590.54,0.00021917,2]
[358266593,1744884646674,-500.0,0.00021917,2]
[358266595,1744884646687,-500.0,0.00021917,2]
[358266597,1744884646695,-500.0,0.00021917,2]
[358266599,1744884646704,-500.0,0.00021917,2]
[358266601,1744884646713,-500.0,0.00021917,2]
[358266603,1744884646723,-500.0,0.00021917,2]
[358266605,1744884646732,-500.0,0.00021917,2]
[358266607,1744884646742,-500.0,0.00021917,2]
[358266609,1744884646751,-500.0,0.00021917,2]
[358266611,1744884646760,-817.12,0.00021917,2]
[358266613,1744884646770,-500.0,0.00021917,2]
[358266615,1744884646780,-661.69,0.00021917,2]
[358266617,1744884646789,-500.0,0.00021917,2]
[358266619,1744884646798,-500.0,0.00021917,2]
[358266622,1744884646808,-500.0,0.00021917,2]
[358266624,1744884646818,-500.0,0.00021917,2]
[358266626,1744884646827,-496.46975652,0.00021917,2]
[358266628,1744884646836,-539.86,0.00021917,2]
[358266630,1744884646845,-500.0,0.00021917,2]
[358266632,1744884646854,-1085.97,0.00021917,2]
[358266634,1744884646866,-500.0,0.00021917,2]
[358266636,1744884646875,-500.0,0.00021917,2]
[358266638,1744884646884,-1003.57,0.00021917,2]
[358266640,1744884646894,-500.0,0.00021917,2]
[358266642,1744884646905,-772.75,0.00021917,2]
[358266644,1744884646914,-515.27,0.00021917,2]
[358266646,1744884646924,-503.82126017,0.00021917,2]
[358266648,1744884646934,-500.0,0.00021917,2]
[358266650,1744884646944,-500.0,0.00021917,2]
[358266652,1744884646953,-879.93,0.00021917,2]
[358266654,1744884646962,-798.24,0.00021917,2]
[358266656,1744884646971,-1010.37,0.00021917,2]
[358266658,1744884646981,-1378.32,0.00021917,2]
[358266660,1744884646990,-500.0,0.00021917,2]
[358266662,1744884646999,-500.0,0.00021917,2]
[358266664,1744884647008,-500.0,0.00021917,2]
[358266666,1744884647018,-562.34,0.00021917,2]
[358266668,1744884647028,-500.0,0.00021917,2]
[358266670,1744884647037,-1924.04,0.00021917,2]
[358266672,1744884647046,-500.0,0.00021917,2]
[358266674,1744884647055,-1398.8,0.00021917,2]
[358266676,1744884647064,-500.0,0.00021917,2]
[358266678,1744884647074,-755.95,0.00021917,2]
[358266680,1744884647083,-240.01652539,0.00021917,2]
[358266682,1744884647092,-504.01978709,0.00021917,2]
[358266684,1744884647101,-953.43,0.00021917,2]
[358266686,1744884647110,-500.0,0.00021917,2]
[358266688,1744884647119,-1527.28,0.00021917,2]
[358266690,1744884647129,-500.0,0.00021917,2]
[358266692,1744884647138,-500.0,0.00021917,2]
[358266694,1744884647147,-500.0,0.00021917,2]
[358266696,1744884647156,-507.43433809,0.00021917,2]
[358266698,1744884647165,-500.0,0.00021917,2]
[358266700,1744884647175,-878.72,0.00021917,2]
[358266702,1744884647184,-500.0,0.00021917,2]
[358266704,1744884647193,-654.08,0.00021917,2]
[358266706,1744884647203,-682.0,0.00021917,2]
[358266708,1744884647212,-1872.43,0.00021917,2]
[358266710,1744884647222,-500.0,0.00021917,2]
[358266712,1744884647231,-500.0,0.00021917,2]
[358266714,1744884647241,-500.0,0.00021917,2]
[358266715,1744884647250,-500.0,0.00021917,2]
[358266716,1744884647260,-500.0,0.00021917,2]
[358266717,1744884647271,-500.0,0.00021917,2]
[358266718,1744884647281,-500.0,0.00021917,2]
[358266719,1744884647291,-657.35,0.00021917,2]
[358266720,1744884647300,-500.0,0.00021917,2]
[358266721,1744884647310,-1530.16,0.00021917,2]
[358266722,1744884647319,-620.29023501,0.00021917,2]
[358266723,1744884647329,-500.0,0.00021917,2]
[358266724,1744884647338,-500.0,0.00021917,2]
[358266725,1744884647348,-500.0,0.00021917,2]
[358266726,1744884647357,-500.0,0.00021917,2]
[358266728,1744884647366,-500.0,0.00021917,2]
[358266730,1744884647376,-500.0,0.00021917,2]
[358266732,1744884647386,-500.0,0.00021917,2]
[358266735,1744884647395,-586.76,0.00021917,2]
[358266737,1744884647405,-762.33,0.00021917,2]
[358266739,1744884647414,-500.0,0.00021917,2]
[358266741,1744884647423,-726.56,0.00021917,2]
[358266743,1744884647433,-500.0,0.00021917,2]
[358266745,1744884647442,-806.0,0.00021917,2]
[358266747,1744884647451,-500.0,0.00021917,2]
[358266749,1744884647461,-512.6,0.00021917,2]
[358266751,1744884647470,-501.19156446,0.00021917,2]
[358266753,1744884647479,-1755.76,0.00021917,2]
[358266755,1744884647489,-500.0,0.00021917,2]
[358266757,1744884647498,-500.0,0.00021917,2]